bitfinex/quotes_SOLUSD_20250917
["timestamp","ask_amount","ask_price","bid_price","bid_amount"]
[1758149895484,26.0,245.73,245.64,0.67]
[1758149895695,4.37438967,245.71,245.64,0.67]
[1758149896261,4.07000407,245.7,245.64,0.67]
[1758149896494,13.59559401,245.75,245.64,0.67]
[1758149896495,0.06,245.81,245.65,37.91438967]
[1758149896783,4.37438967,245.78,245.67,4.37438967]
[1758149896986,0.77,245.79,245.67,4.37438967]
[1758149896987,8.50342246,245.76,245.67,4.37438967]
[1758149897181,4.12903279,245.76,245.68,0.67]
[1758149897491,8.50342246,245.76,245.68,0.67]
[1758149897970,8.50342246,245.76,245.68,4.74017781]
[1758149898586,0.71,245.75,245.69,33.54]
[1758149898787,4.37438967,245.74,245.69,33.54]
[1758149898987,0.06,245.76,245.68,4.07017781]
[1758149899198,4.43438967,245.76,245.7,0.67]
[1758149899379,8.5034232,245.76,245.7,0.67]
[1758149900696,0.06,245.76,245.7,4.73998385]
[1758149902169,0.06,245.76,245.71,33.52]
[1758149902479,0.06,245.76,245.7,4.73998385]
[1758149902677,0.06,245.76,245.71,33.52]
[1758149903085,0.06,245.76,245.71,34.19]
[1758149903287,0.06,245.76,245.72,33.52]
[1758149903599,0.71,245.75,245.73,33.52]
[1758149903770,0.71,245.75,245.68,0.67]
[1758149904086,8.50340814,245.76,245.71,22.577835]
[1758149904087,4.43438967,245.76,245.71,22.577835]
[1758149904590,4.43438967,245.76,245.71,23.247835]
[1758149904992,8.50343412,245.76,245.71,22.577835]
[1758149905195,9.21343412,245.76,245.71,22.577835]
[1758149905388,4.83904445,245.76,245.71,22.577835]
[1758149905583,9.21343412,245.76,245.71,22.577835]
[1758149906281,8.50343412,245.76,245.71,23.247835]
[1758149906483,9.21343412,245.76,245.71,22.577835]
[1758149906802,9.21343412,245.76,245.72,0.67]
[1758149906803,0.06,245.76,245.72,0.67]
[1758149907002,0.06,245.76,245.73,0.67]
[1758149907595,0.06,245.76,245.71,26.64755311]
[1758149907798,0.06,245.76,245.72,0.67]
[1758149908501,0.06,245.76,245.73,33.52]
[1758149909680,0.06,245.76,245.72,4.7396635]
[1758149909996,0.06,245.76,245.73,33.52]
[1758149911483,0.06,245.76,245.73,34.19]
[1758149911778,0.71,245.75,245.72,33.5]
[1758149912212,0.71,245.75,245.72,30.764458]
[1758149913309,4.37438967,245.75,245.72,30.764458]
[1758149913507,4.37438967,245.73,245.69,33.5]
[1758149913818,0.67,245.74,245.69,33.5]
[1758149913819,2.34986085,245.74,245.69,33.5]
[1758149914320,0.67,245.73,245.69,33.5]
[1758149915101,2.34986085,245.72,245.68,33.5]
[1758149915311,4.07000407,245.7,245.64,4.0709982]
[1758149915509,1.67986085,245.67,245.62,26.0]
[1758149915715,1.67986085,245.65,245.59,12.2246898]
[1758149915924,1.67986085,245.65,245.6,33.5]
[1758149916163,0.67,245.64,245.6,33.5]
[1758149916499,0.67,245.64,245.57,0.7]
[1758149916698,0.67,245.64,245.58,35.17986085]
[1758149917518,4.74103156,245.64,245.58,39.25185368]
[1758149917698,4.74103156,245.64,245.58,41.94970624]
[1758149918230,4.07103156,245.64,245.58,41.94970624]
[1758149918830,4.07081671,245.66,245.59,5.07771341]
[1758149919131,8.44853012,245.66,245.59,5.07771341]
[1758149919329,4.07081671,245.66,245.61,4.37771341]
[1758149919511,13.59559401,245.67,245.61,4.37771341]
[1758149919716,14.26559401,245.67,245.59,4.77180601]
[1758149919927,0.67,245.66,245.55,1.39157217]
[1758149920134,0.67,245.66,245.57,4.77214885]
[1758149920331,0.67,245.66,245.59,4.37771341]
[1758149921050,26.0,245.62,245.51,0.7]
[1758149921222,4.37771341,245.6,245.51,33.58]
[1758149921544,30.37771341,245.62,245.54,4.37771341]
[1758149921727,26.67,245.62,245.55,4.37771341]
[1758149921928,30.07135324,245.62,245.55,4.37771341]
[1758149922123,0.67,245.61,245.54,4.37771341]
[1758149922925,0.67,245.61,245.55,0.03]
[1758149922926,0.67,245.6,245.55,0.03]
[1758149923335,4.37771341,245.59,245.55,0.03]
[1758149923660,5.04771341,245.59,245.55,0.03]
[1758149923844,0.67,245.58,245.55,0.03]
[1758149924347,0.67,245.57,245.55,0.03]
[1758149924856,0.67,245.65,245.56,0.7]
[1758149925066,26.0,245.64,245.59,4.37771341]
[1758149925228,26.67,245.64,245.59,4.37771341]
[1758149925431,0.67,245.64,245.58,4.37771341]
[1758149925628,0.67,245.63,245.55,0.03]
[1758149926143,4.37771341,245.56,245.55,0.03]
[1758149926342,5.04771341,245.56,245.55,0.03]
[1758149926656,31.04771341,245.59,245.55,0.03]
[1758149927041,0.67,245.58,245.55,0.03]
[1758149927432,0.67,245.57,245.55,0.03]
[1758149928683,0.67,245.56,245.55,0.03]
[1758149929742,0.67,245.56,245.5,8.37000627]
[1758149930772,26.67,245.59,245.51,5.07771341]
[1758149931468,46.07778707,245.64,245.55,4.37771341]
[1758149931469,13.59559401,245.63,245.55,4.37771341]
[1758149931669,14.26559401,245.63,245.56,4.07232448]
[1758149931993,13.59559401,245.61,245.54,4.07260839]
[1758149932161,0.67,245.6,245.54,4.07260839]
[1758149932481,13.59559401,245.61,245.54,9.1503218]
[1758149932653,13.59559401,245.62,245.54,19.33196226]
[1758149933356,5.04771341,245.61,245.54,19.33196226]
[1758149933575,5.04771341,245.61,245.54,18.63196226]
[1758149933778,5.04771341,245.61,245.54,8.4503218]
[1758149934075,0.67,245.6,245.54,4.07260839]
[1758149934575,0.67,245.59,245.54,4.07260839]
[1758149934775,17.66689868,245.63,245.54,4.07260839]
[1758149934982,0.67,245.58,245.54,4.07260839]
[1758149935361,0.67,245.57,245.48,0.7]
[1758149935563,0.67,245.57,245.48,35.72]
[1758149935793,0.67,245.57,245.5,4.07331975]
[1758149936166,0.67,245.6,245.52,4.37771341]
[1758149936571,0.67,245.6,245.54,4.37771341]
[1758149936773,4.37771341,245.61,245.54,5.07771341]
[1758149936965,0.67,245.6,245.52,4.37771341]
[1758149937281,39.59559401,245.63,245.52,4.37771341]
[1758149937282,5.04771341,245.59,245.52,4.37771341]
[1758149937868,0.67,245.59,245.52,5.75501117]
[1758149938276,0.67,245.59,245.52,5.71226817]
[1758149938697,4.74183488,245.59,245.52,4.03024494]
[1758149938885,1.68202323,245.58,245.52,4.03024494]
[1758149939076,0.66,245.57,245.5,39.73318864]
[1758149939277,0.66,245.57,245.5,4.07318864]
[1758149940064,0.66,245.61,245.51,2.33202323]
[1758149940269,1.68202323,245.6,245.51,2.33202323]
[1758149940469,1.68202323,245.58,245.5,0.65]
[1758149940665,1.68202323,245.58,245.5,2.33202323]
[1758149941197,0.66,245.57,245.48,36.17]
[1758149941405,0.66,245.57,245.49,1.68202323]
[1758149941571,0.66,245.57,245.49,0.65]
[1758149941768,0.66,245.57,245.47,1.68202323]
[1758149942001,0.66,245.56,245.47,1.68202323]
[1758149942206,0.66,245.55,245.46,36.23]
[1758149942501,0.66,245.55,245.46,37.91202323]
[1758149942714,26.0,245.54,245.52,0.03]
[1758149942902,28.37202323,245.54,245.52,0.03]
[1758149943083,27.68202323,245.54,245.52,0.03]
[1758149943415,0.69,245.53,245.52,0.03]
[1758149944082,2.37202323,245.53,245.52,0.03]
[1758149944381,18.35841606,245.53,245.49,0.03]
[1758149944597,41.27761724,245.5,245.49,0.03]
[1758149944990,40.28559401,245.5,245.49,0.03]
[1758149945194,13.59559401,245.53,245.49,0.03]
[1758149945698,13.59559401,245.56,245.5,0.69]
[1758149945889,13.59559401,245.56,245.49,0.03]
[1758149946086,19.35000625,245.56,245.49,0.03]
[1758149946279,0.69,245.55,245.49,0.03]
[1758149946484,0.69,245.55,245.49,1.71202323]
[1758149946791,0.69,245.55,245.5,1.68202323]
[1758149946990,0.69,245.54,245.5,1.68202323]
[1758149947709,26.0,245.54,245.5,1.68202323]
[1758149947890,0.69,245.57,245.52,6.33990735]
[1758149948082,0.06,245.58,245.53,0.69]
[1758149948403,0.06,245.58,245.56,6.33990735]
[1758149949289,0.06,245.58,245.56,7.02990735]
[1758149949905,0.06,245.58,245.57,6.33990735]
[1758149950110,0.06,245.58,245.57,7.02990735]
[1758149950408,0.06,245.58,245.57,6.33990735]
[1758149951502,0.06,245.58,245.5,35.26]
[1758149951698,4.76226962,245.57,245.49,6.36990735]
[1758149952008,0.69,245.56,245.5,6.33990735]
[1758149952215,0.69,245.56,245.52,6.33990735]
[1758149952400,4.13200597,245.58,245.53,6.33990735]
[1758149952600,0.69,245.57,245.52,6.33990735]
[1758149952802,0.69,245.56,245.52,6.33990735]
[1758149953300,0.69,245.56,245.51,6.33990735]
[1758149953814,0.69,245.56,245.49,0.72]
[1758149954005,0.69,245.56,245.51,6.33990735]
[1758149954890,4.13215625,245.58,245.51,7.02990735]
[1758149955503,0.06,245.58,245.49,4.10347922]
[1758149955700,0.69,245.57,245.49,0.03]
[1758149955899,4.13200263,245.58,245.49,0.03]
[1758149955900,0.06,245.58,245.49,0.72]
[1758149956199,0.06,245.58,245.53,6.33990735]
[1758149956399,0.75,245.58,245.53,6.33990735]
[1758149956611,0.06,245.58,245.57,6.33990735]
[1758149956816,0.06,245.58,245.57,7.02990735]
[1758149957017,0.06,245.58,245.49,0.03]
[1758149957216,0.06,245.58,245.54,6.33990735]
[1758149957434,0.06,245.58,245.53,0.69]
[1758149957606,0.06,245.58,245.55,6.33990735]
[1758149957933,0.06,245.58,245.54,4.07261209]
[1758149958109,0.06,245.58,245.55,6.33990735]
[1758149958312,0.06,245.58,245.53,0.69]
[1758149958524,0.06,245.58,245.55,6.33990735]
[1758149958709,0.06,245.58,245.51,0.69]
[1758149958903,0.06,245.58,245.55,6.33990735]
[1758149959305,0.75,245.58,245.53,6.33990735]
[1758149959517,4.82200638,245.58,245.53,6.33990735]
[1758149960300,4.82200638,245.58,245.54,6.33990735]
[1758149960505,4.82200638,245.58,245.49,0.03]
[1758149960506,6.33990735,245.55,245.49,0.03]
[1758149960822,13.59559401,245.56,245.5,6.33990735]
[1758149961120,20.62550136,245.56,245.5,6.33990735]
[1758149961624,13.59559401,245.57,245.54,6.33990735]
[1758149961824,0.06,245.58,245.49,4.10346286]
[1758149961825,0.06,245.58,245.56,6.33990735]
[1758149962321,0.06,245.58,245.54,6.33990735]
[1758149962618,6.33990735,245.55,245.5,0.03]
[1758149962821,13.59559401,245.56,245.5,4.10330333]
[1758149963027,13.59559401,245.56,245.51,6.33990735]
[1758149963206,0.69,245.55,245.51,6.33990735]
[1758149963524,0.69,245.55,245.5,4.10330333]
[1758149963525,0.69,245.55,245.5,10.44321068]
[1758149964017,0.75,245.58,245.54,6.33990735]
[1758149964230,0.75,245.58,245.53,6.33990735]
[1758149964803,0.06,245.58,245.53,6.33990735]
[1758149965002,0.06,245.58,245.52,6.33990735]
[1758149965220,0.06,245.58,245.54,0.69]
[1758149965607,0.06,245.58,245.52,6.33990735]
[1758149966528,0.06,245.58,245.53,4.07282205]
[1758149966929,0.06,245.58,245.53,4.76282205]
[1758149967238,0.06,245.58,245.54,0.69]
[1758149967922,0.06,245.58,245.53,10.4127294]
[1758149968126,6.39990735,245.58,245.51,0.69]
[1758149968311,0.69,245.57,245.5,0.03]
[1758149968511,7.02990735,245.57,245.5,0.03]
[1758149968804,6.33990735,245.53,245.5,0.03]
[1758149969204,7.02990735,245.53,245.5,0.03]
[1758149969527,14.28559401,245.56,245.5,0.03]
[1758149969917,2.62941461,245.54,245.5,0.03]
[1758149970317,0.69,245.53,245.5,0.03]
[1758149970823,2.62941461,245.54,245.5,0.03]
[1758149971019,0.69,245.53,245.5,0.03]
[1758149971212,3.31941461,245.54,245.5,0.03]
[1758149971828,13.59559401,245.54,245.5,0.03]
[1758149972321,3.31941461,245.53,245.5,0.03]
[1758149972525,7.39224074,245.53,245.5,0.03]
[1758149972727,0.66,245.52,245.5,0.03]
[1758149973126,0.66,245.51,245.5,0.03]
[1758149973526,14.25559401,245.51,245.5,0.03]
[1758149973841,16.88500862,245.51,245.5,0.03]
[1758149974214,17.16933176,245.51,245.5,0.03]
[1758149974409,21.2424856,245.51,245.5,0.03]
[1758149975021,23.98220454,245.51,245.5,0.03]
[1758149975714,58.60220454,245.51,245.5,0.03]
[1758149975910,23.98220454,245.51,245.5,0.03]
[1758149976128,55.8424856,245.51,245.5,0.03]
[1758149976436,58.57935794,245.51,245.5,0.03]
[1758149977419,13.59559401,245.47,245.41,0.03]
[1758149977629,42.50933176,245.44,245.41,0.03]
[1758149977937,79.7862041,245.44,245.41,0.03]
[1758149978152,80.4462041,245.44,245.43,1e-08]
[1758149978643,84.52051961,245.44,245.43,1e-08]
[1758149978813,86.13300609,245.44,245.43,1e-08]
[1758149979018,13.87991715,245.43,245.41,0.03]
[1758149979216,21.72794915,245.42,245.41,0.03]
[1758149979417,39.87991715,245.39,245.38,0.03]
[1758149979644,77.02933176,245.39,245.38,0.03]
[1758149979817,77.68933176,245.39,245.38,0.03]
[1758149980648,81.76447744,245.39,245.38,0.03]
[1758149981236,13.87991715,245.38,245.36,1e-08]
[1758149981518,16.50933176,245.37,245.36,1e-08]
[1758149981726,17.16933176,245.37,245.36,1e-08]
[1758149982737,21.2448096,245.37,245.36,1e-08]
[1758149983825,13.87991715,245.36,245.35,0.03]
[1758149984018,50.94933176,245.36,245.35,0.03]
[1758149984218,51.60933176,245.36,245.35,0.03]
[1758149984427,37.16933176,245.36,245.29,0.1]
[1758149984644,46.58564025,245.32,245.29,0.1]
[1758149984821,81.00564025,245.32,245.29,0.1]
[1758149985022,13.87991715,245.31,245.3,1e-08]
[1758149985248,39.87991715,245.29,245.25,0.1]
[1758149985544,74.29991715,245.29,245.25,0.1]
[1758149985720,39.59559401,245.26,245.25,0.1]
[1758149985919,76.90933176,245.26,245.25,0.1]
[1758149986125,77.56933176,245.26,245.25,0.1]
[1758149986346,13.59559401,245.21,245.16,0.68]
[1758149986528,2.62941461,245.18,245.16,0.68]
[1758149986833,20.30381108,245.17,245.13,0.68]
[1758149987015,2.62941461,245.14,245.1,0.68]
[1758149987220,2.62941461,245.14,244.97,13.59559401]
[1758149987221,2.62941461,245.14,245.11,0.68]
[1758149987423,34.4,245.15,245.12,0.68]
[1758149987648,34.4,245.15,245.13,0.68]
[1758149987819,13.59559401,245.15,245.14,0.68]
[1758149988243,13.59559401,245.15,245.11,0.68]
[1758149988548,13.59559401,245.15,245.12,0.68]
[1758149988945,34.38,245.18,245.13,2.62941461]
[1758149989246,34.38,245.18,245.14,0.68]
[1758149989432,34.38,245.18,245.15,0.68]
[1758149989827,13.59559401,245.17,245.12,0.68]
[1758149990246,47.95559401,245.17,245.13,0.68]
[1758149990641,13.59559401,245.17,245.11,6.35963157]
[1758149990841,17.67447617,245.17,245.12,0.68]
[1758149991043,17.67447617,245.17,245.13,0.68]
[1758149991547,17.67447617,245.17,245.11,0.68]
[1758149991748,24.03410774,245.17,245.11,0.68]
[1758149992121,58.33410774,245.17,245.11,0.68]
[1758149992450,6.35963157,245.16,245.11,0.68]
[1758149992820,10.43862235,245.16,245.11,0.68]
[1758149993423,19.95522558,245.14,245.07,6.35963157]
[1758149993729,54.25522558,245.14,245.08,6.35963157]
[1758149994249,47.89559401,245.14,245.09,6.35963157]
[1758149994555,47.89559401,245.14,245.09,7.03963157]
[1758149994727,4.07946803,245.13,245.09,0.68]
[1758149994926,4.07946803,245.13,245.09,7.03963157]
[1758149995136,13.59559401,245.12,245.06,0.68]
[1758149995452,13.59559401,245.12,245.06,7.03963157]
[1758149995845,13.59559401,245.12,245.06,0.68]
[1758149996044,13.59559401,245.12,245.06,7.03963157]
[1758149996545,19.95522558,245.12,245.05,7.03963157]
[1758149996848,51.89538563,245.12,245.07,6.35963157]
[1758149997153,13.59559401,245.13,245.09,0.03]
[1758149997538,13.40102214,245.13,245.09,0.03]
[1758149998452,13.40102214,245.13,245.09,0.73]
[1758149998836,34.2,245.15,245.1,7.05963157]
[1758149999037,38.27915131,245.15,245.11,0.7]
[1758149999237,38.27915131,245.15,245.1,7.05963157]
[1758149999433,38.98915131,245.15,245.09,0.03]
[1758149999639,6.35963157,245.14,245.09,0.03]
[1758150000049,0.71,245.13,245.09,0.03]
[1758150000361,19.95522558,245.1,245.09,0.03]
[1758150000547,24.03519294,245.1,245.09,0.03]
[1758150000737,13.59559401,245.1,245.09,0.03]
[1758150000945,13.59559401,245.11,245.09,0.03]
[1758150001441,34.12,245.13,245.1,7.05963157]
[1758150001644,13.59559401,245.14,245.09,0.03]
[1758150001845,26.0,245.13,245.09,7.08963157]
[1758150002061,34.12,245.16,245.09,7.08963157]
[1758150002363,26.0,245.16,245.11,6.35963157]
[1758150002544,19.95522558,245.12,245.09,0.03]
[1758150002864,40.49963157,245.13,245.09,0.03]
[1758150003065,13.59559401,245.14,245.1,6.35963157]
[1758150003251,26.0,245.16,245.12,6.35963157]
[1758150003565,13.59559401,245.19,245.14,6.35963157]
[1758150003769,47.69559401,245.19,245.14,7.06963157]
[1758150003964,6.41963157,245.25,245.18,6.35963157]
[1758150004173,13.65559401,245.25,245.2,6.35963157]
[1758150004349,0.06,245.25,245.2,7.06963157]
[1758150004551,0.06,245.25,245.21,6.35963157]
[1758150004756,6.35963157,245.22,245.15,0.71]
[1758150004944,0.7,245.22,245.13,0.71]
[1758150005144,32.35963157,245.2,245.13,0.71]
[1758150005348,26.0,245.2,245.13,0.71]
[1758150006062,4.07736076,245.26,245.14,6.35963157]
[1758150006254,4.07736076,245.26,245.15,0.71]
[1758150006255,4.13755525,245.25,245.15,0.71]
[1758150006455,6.41963157,245.25,245.15,0.71]
[1758150006763,0.06,245.25,245.16,4.07896883]
[1758150006964,0.06,245.25,245.17,7.06963157]
[1758150007489,0.06,245.25,245.18,0.71]
[1758150007644,0.06,245.25,245.19,6.35963157]
[1758150007841,0.06,245.25,245.2,0.71]
[1758150008242,0.06,245.25,245.23,6.35963157]
[1758150008469,0.06,245.25,245.24,0.71]
[1758150008768,10.49714863,245.25,245.19,0.71]
[1758150009275,0.06,245.25,245.19,4.78845186]
[1758150009454,0.06,245.25,245.2,0.71]
[1758150010168,0.06,245.25,245.21,0.71]
[1758150010482,0.06,245.25,245.23,4.39174094]
[1758150010775,0.06,245.28,245.24,38.74763823]
[1758150010979,0.06,245.28,245.27,4.39174094]
[1758150011165,0.06,245.28,245.25,0.71]
[1758150011368,0.06,245.28,245.27,4.39174094]
[1758150011870,0.06,245.28,245.24,4.07763823]
[1758150012268,0.06,245.28,245.25,0.71]
[1758150012664,0.06,245.28,245.27,1.6852966]
[1758150013074,0.06,245.28,245.27,2.3952966]
[1758150013464,0.06,245.28,245.27,0.71]
[1758150013762,0.06,245.28,245.27,64.99833797]
[1758150014193,1e-08,245.28,245.27,78.87825512]
[1758150014462,1e-08,245.3,245.28,13.87991715]
[1758150014686,1e-08,245.3,245.29,35.15714885]
[1758150014988,1e-08,245.3,245.29,69.35946815]
[1758150015284,1e-08,245.3,245.29,57.36274286]
[1758150015586,1e-08,245.3,245.29,52.56672419]
[1758150015768,1e-08,245.31,245.3,13.87991715]
[1758150015974,1e-08,245.31,245.3,14.58991715]
[1758150016188,1e-08,245.31,245.3,93.48991715]
[1758150016484,0.9,245.5,245.33,13.87991715]
[1758150016685,0.9,245.5,245.42,8.46282121]
[1758150016992,0.9,245.5,245.42,42.36282121]
[1758150017888,0.9,245.5,245.44,4.38833797]
[1758150018068,0.9,245.5,245.42,42.36282121]
[1758150018672,0.2,245.5,245.43,4.78446995]
[1758150018876,0.9,245.5,245.42,42.36293144]
[1758150019192,0.9,245.5,245.43,33.9]
[1758150019885,4.9733397,245.5,245.43,33.9]
[1758150020068,4.38833797,245.46,245.41,38.26833797]
[1758150020268,14.45663908,245.5,245.41,38.26833797]
[1758150020269,40.45663908,245.5,245.41,4.38833797]
[1758150020582,0.7,245.46,245.39,33.88]
[1758150021271,4.77414616,245.46,245.4,33.88]
[1758150021587,4.77414616,245.46,245.32,4.78630849]
[1758150021588,4.38833797,245.43,245.32,4.78630849]
[1758150021888,0.7,245.42,245.33,33.88]
[1758150022100,4.38833797,245.41,245.33,33.88]
[1758150022476,0.7,245.42,245.34,33.88]
[1758150022962,0.7,245.42,245.35,33.88]
[1758150023168,4.07481357,245.41,245.35,33.88]
[1758150023583,4.07481357,245.41,245.34,4.0759074]
[1758150023784,4.07481357,245.41,245.35,33.88]
[1758150024469,5.08833797,245.42,245.35,33.88]
[1758150024688,4.07458822,245.43,245.35,34.59]
[1758150024875,26.0,245.44,245.38,4.38833797]
[1758150025075,26.0,245.44,245.36,0.71]
[1758150025076,26.7,245.44,245.36,0.71]
[1758150025391,4.38833797,245.43,245.35,33.88]
[1758150025591,4.38833797,245.41,245.35,33.88]
[1758150026695,8.46316157,245.41,245.35,33.88]
[1758150026875,8.46316157,245.41,245.35,37.95570201]
[1758150026876,4.38833797,245.41,245.35,37.95570201]
[1758150027079,8.46316021,245.41,245.35,37.95570201]
[1758150027272,0.7,245.42,245.35,37.95570201]
[1758150027473,30.07434609,245.44,245.36,0.71]
[1758150027688,34.46268406,245.44,245.36,0.71]
[1758150028072,8.46247151,245.46,245.36,0.71]
[1758150028275,8.46247151,245.46,245.36,5.09833797]
[1758150028488,8.46247151,245.46,245.36,0.71]
[1758150028698,4.38833797,245.38,245.29,0.71]
[1758150028893,4.38833797,245.38,245.32,33.88]
[1758150029076,5.08833797,245.38,245.32,33.88]
[1758150029914,4.38833797,245.34,245.27,0.71]
[1758150030210,4.38833797,245.34,245.28,33.88]
[1758150030584,8.46435958,245.34,245.28,33.88]
[1758150030888,4.38833797,245.34,245.28,37.95697179]
[1758150031481,4.07561097,245.37,245.29,0.71]
[1758150031692,8.46394894,245.37,245.29,0.71]
[1758150031909,9.16394894,245.37,245.29,0.71]
[1758150032110,0.7,245.41,245.3,4.38833797]
[1758150032312,4.07414952,245.45,245.31,0.71]
[1758150032616,4.07414952,245.45,245.36,4.38833797]
[1758150032819,5.07833797,245.44,245.34,9.13420954]
[1758150032981,4.38833797,245.42,245.35,33.88]
[1758150033182,5.07833797,245.42,245.36,33.88]
[1758150033708,0.69,245.41,245.35,33.88]
[1758150034216,26.69,245.44,245.35,34.55]
[1758150034382,5.07833797,245.44,245.35,34.55]
[1758150034711,5.1,245.4,245.36,4.07564395]
[1758150034910,5.1,245.4,245.37,0.67]
[1758150035099,5.1,245.4,245.38,0.67]
[1758150035414,5.1,245.4,245.39,5.05833797]
[1758150035611,4.13,245.4,245.39,5.05833797]
[1758150035818,4.13,245.4,245.39,31.05833797]
[1758150036120,0.2,245.5,245.43,26.0]
[1758150036345,0.2,245.5,245.49,4.38833797]
[1758150036612,0.2,245.5,245.49,38.24833797]
[1758150036980,0.2,245.5,245.49,42.32182365]
[1758150039293,0.2,245.5,245.49,42.72917221]
[1758150039891,0.2,245.5,245.44,26.0]
[1758150040141,0.2,245.5,245.45,33.86]
[1758150040451,0.2,245.5,245.45,38.24833797]
[1758150040809,0.2,245.5,245.45,4.38833797]
[1758150041035,0.2,245.5,245.46,33.86]
[1758150041210,0.89,245.5,245.46,33.86]
[1758150041411,0.89,245.5,245.41,10.18665412]
[1758150041412,0.69,245.49,245.41,10.18665412]
[1758150041611,0.69,245.49,245.44,26.0]
[1758150041805,0.2,245.5,245.37,0.14216157]
[1758150042029,0.19,245.49,245.41,4.38833797]
[1758150042219,0.19,245.49,245.42,33.86]
[1758150042528,0.2,245.5,245.43,4.38833797]
[1758150043137,4.27337331,245.5,245.43,8.46281308]
[1758150043334,4.27337331,245.5,245.43,4.38833797]
[1758150043511,4.27337331,245.5,245.44,33.86]
[1758150043928,4.38833797,245.49,245.45,33.84]
[1758150044133,0.69,245.48,245.45,33.84]
[1758150044341,0.69,245.47,245.45,33.84]
[1758150044830,4.38833797,245.49,245.45,33.84]
[1758150045133,0.2,245.5,245.41,4.38833797]
[1758150045134,5.07833797,245.48,245.41,4.38833797]
[1758150045323,5.07833797,245.48,245.43,33.84]
[1758150045530,0.69,245.47,245.4,4.38833797]
[1758150045836,0.69,245.47,245.41,33.84]
[1758150046412,0.69,245.47,245.39,4.38833797]
[1758150046619,4.38833797,245.44,245.36,4.07558034]
[1758150046827,4.38833797,245.44,245.37,33.84]
[1758150047035,4.38833797,245.44,245.35,26.51]
[1758150047236,4.38833797,245.42,245.36,33.84]
[1758150047438,4.38833797,245.4,245.36,33.84]
[1758150047624,40.25898486,245.46,245.32,0.03]
[1758150047625,4.38833797,245.38,245.32,0.03]
[1758150047939,4.38833797,245.38,245.34,33.84]
[1758150048143,0.69,245.37,245.32,0.03]
[1758150048453,0.69,245.37,245.32,33.87]
[1758150048648,9.15412809,245.36,245.32,0.03]
[1758150048850,0.69,245.35,245.32,0.03]
[1758150049744,0.69,245.41,245.33,0.51]
[1758150049941,4.38833797,245.4,245.32,4.41833797]
[1758150050124,0.69,245.39,245.32,4.41833797]
[1758150050528,5.07833797,245.39,245.33,33.84]
[1758150050845,4.38833797,245.41,245.34,4.38833797]
[1758150051041,5.07833797,245.41,245.34,4.38833797]
[1758150051256,4.38833797,245.41,245.35,33.84]
[1758150051554,4.38833797,245.43,245.35,34.35]
[1758150052042,0.69,245.44,245.36,4.38833797]
[1758150052467,2.72492294,245.48,245.38,4.38833797]
[1758150052468,4.38833797,245.46,245.38,4.38833797]
[1758150052630,4.76371774,245.48,245.4,4.38833797]
[1758150052631,9.15205571,245.48,245.4,4.38833797]
[1758150052833,4.38833797,245.46,245.39,8.46348365]
[1758150053026,5.07833797,245.46,245.39,8.46348365]
[1758150053225,5.07833797,245.46,245.4,33.84]
[1758150053731,0.75,245.49,245.41,4.38833797]
[1758150053935,4.82356283,245.49,245.41,4.38833797]
[1758150054129,9.2119008,245.49,245.41,4.38833797]
[1758150054325,4.82356283,245.49,245.41,4.38833797]
[1758150054524,0.69,245.48,245.4,33.84]
[1758150054744,4.38833797,245.46,245.37,34.46367359]
[1758150054957,4.38833797,245.42,245.38,33.84]